Cogmind - Beta 15 @@@ ROGUE MODE // 2025.06.04 @ 09:20:02 Player: SuperSwiss Result: Destroyed by L-31 Rogue with Katana Performance ------------- Evolutions (1) 500 Regions Visited (4) 800 Robots Destroyed (44) 220 Value Destroyed (1039) 1039 Prototype IDs (2) 40 Alien Tech Used (0) 0 Bonus (0) 0 TOTAL SCORE: 2599 Bonus ------- None Cogmind --------- Core Integrity 0/400 Matter 300/300 Energy 57/100 System Corruption 0% Temperature Cool (0) Movement Core (400) Ox7 Location -9/Mines Parts ------- > --- POWER (1) -------- (None) > --- PROPULSION (2) --- (None) > --- UTILITY (4) ------ Large Storage Unit Structural Scanner Seismic Detector > --- WEAPON (2) ------- Katana > --- INVENTORY (15) --- Light Treads Heat Sink Signal Interpreter Improved Terrain Scanner Beam Rifle Heavy Assault Rifle Grenade Launcher Grenade Launcher Welding Torch Proton Bomb Trap Proton Bomb Trap Proton Bomb Trap Proton Bomb Trap Peak State ------------ > --- POWER ------------ Light Angular Momentum Engine > --- PROPULSION ------- Light Treads Light Treads > --- UTILITY ---------- Heat Sink Large Storage Unit Structural Scanner Seismic Detector > --- WEAPON ----------- Improved EM Shotgun Beamcaster > --- INVENTORY -------- Light Nuclear Core Wheel Signal Interpreter Improved Terrain Scanner Beam Rifle Heavy Assault Rifle Autogun Grenade Launcher Grenade Launcher Welding Torch Katana Proton Bomb Trap Proton Bomb Trap Proton Bomb Trap Proton Bomb Trap [Rating: 21] Favorites ----------- Power Light Angular Momentum Engine Engine Light Angular Momentum Engine Power Core Light Nuclear Core Propulsion Light Treads Treads Light Treads Wheel Wheel Utility Seismic Detector Device Seismic Detector Storage Large Storage Unit Weapon Light Assault Rifle Energy Gun Particle Gun Ballistic Gun Light Assault Rifle Launcher Grenade Launcher Slashing Weapon Katana Build | -11 -10 -10 -9 -9 ------- Run | Yrd Mat Min Mat Min Slots Evolved 2 | . . . 2 . Power . | . . . . . Propulsion . | . . . . . Utility 2 | . . . 2 . Weapon . | . . . . . Parts Attached 37 | 7 8 6 14 2 Power 4 | 1 1 2 . . Engine 3 | 1 1 1 . . Core 1 | . . 1 . . Reactor . | . . . . . Propulsion 11 | 2 2 2 5 . Treads 10 | 2 2 2 4 . Leg . | . . . . . Wheel 1 | . . . 1 . Hover . | . . . . . Flight . | . . . . . Utility 8 | 2 2 . 4 . Device 5 | 1 . . 4 . Storage 3 | 1 2 . . . Processor . | . . . . . Hackware . | . . . . . Protection . | . . . . . Artifact . | . . . . . Weapon 14 | 2 3 2 5 2 Energy Gun 10 | 1 2 2 4 1 Energy Cannon . | . . . . . Ballistic Gun 2 | 1 . . 1 . Ballistic Cannon . | . . . . . Launcher 1 | . 1 . . . Special Weapon . | . . . . . Impact Weapon . | . . . . . Slashing Weapon 1 | . . . . 1 Piercing Weapon . | . . . . . Special Melee Weapon . | . . . . . Unidentified Prototypes 2 | . . . 2 . Parts Lost 17 | . 2 1 8 6 Power 4 | . 1 1 1 1 Propulsion 4 | . . . 2 2 Utility 3 | . . . 2 1 Weapon 6 | . 1 . 3 2 Highest Loss Streak 6 | . 1 1 4 6 To Critical Strikes . | . . . . . Average Backups 9 | 3 9 11 10 10 Power . | . 1 1 . . Propulsion . | . 1 1 . 1 Utility 3 | . 4 4 2 3 Weapon 3 | 1 2 3 5 5 Tool/Special . | . . . . . Unused Backups 13 | . 2 2 1 8 Power 1 | . . 1 . . Propulsion . | . . . . . Utility 5 | . 1 1 . 3 Weapon 6 | . 1 . 1 4 Tool/Special 1 | . . . . 1 Average Slot Usage (%) 98 | . 99 100 96 77 Engine 10 | . 13 9 7 . Core 2 | . . 4 3 2 Treads 25 | . 28 28 19 16 Device 20 | . 14 14 32 30 Storage 12 | . 14 14 11 11 Energy Gun 19 | . 16 23 20 13 Ballistic Gun 5 | . 11 4 1 . Peak Build Rating 21 | 8 8 18 21 15 Average Rating 12 | 5 7 12 17 10 On Entrance 9 | . 8 8 18 15 Naked Turns . | . . . . . Heaviest Build 40 | 12 28 38 40 . Greatest Support 40 | 40 40 40 40 . Greatest Overweight (x) 11 | . . . 11 . Average Overweight (x) . | . . . . . Largest Inventory Capacity 15 | 8 15 15 15 15 Average Capacity 13 | 7 10 15 15 15 Most Carried 15 | 6 11 15 15 15 Average Carried 12 | 3 9 14 14 14 Final Capacity 15 | 8 15 15 15 15 Final Carried 15 | 6 11 15 15 13 Class Distribution -------------------- 79% | Scavenger-Mutant 20% | Mutant Dominant Class ---------------- Scavenger-Mutant | -10/Materials Scavenger-Mutant | -10/Mines Scavenger-Mutant | -9/Materials Scavenger-Mutant | -9/Mines Resources | -11 -10 -10 -9 -9 ----------- Run | Yrd Mat Min Mat Min Matter Collected 741 | 265 159 108 209 . Remotely . | . . . . . Salvage Created 1454 | 28 533 154 739 . Parts 100 | 8 40 16 36 . Haulers Intercepted 3 | . 2 . 1 . Recyclers Shooed 2 | . . . 2 . Parts Field Recycled . | . . . . . Retrieved Matter . | . . . . . Parts Self-Destructed . | . . . . . Prevented . | . . . . . Kills | -11 -10 -10 -9 -9 ------- Run | Yrd Mat Min Mat Min Combat Hostiles Destroyed 35 | . 13 8 14 . Guns 28 | . 10 6 12 . AOE 5 | . 3 2 . . Classes Destroyed 9 | 1 5 . 3 . Worker 2 | . 2 . . . Tunneler 2 | 2 . . . . Hauler 3 | . 2 . 1 . Recycler 1 | . . . 1 . Watcher 1 | . 1 . . . Swarmer 14 | . 5 6 3 . Grunt 13 | . 8 2 3 . Duelist 2 | . . . 2 . Sentry 6 | . . . 6 . Best Kill Streak 4 | 1 3 3 4 . Combat Bots Only 4 | . 3 3 4 . Max Kills in Single Turn 3 | 1 3 2 1 . Gunslinging 1 | . . 1 . . Exploded 2 | . 2 2 . . Melee . | . . . . . Uniques/NPCs Destroyed . | . . . . . Combat | -11 -10 -10 -9 -9 -------- Run | Yrd Mat Min Mat Min Hostile Shots Fired 269 | . 92 27 106 44 Missed 85 | . 29 12 31 13 Hits 184 | . 63 15 75 31 Melee 16 | . . . 7 9 Projectile 168 | . 63 15 68 22 Critical Strikes 6 | . 1 . 3 2 Damage Taken 2529 | . 693 217 1079 540 Core 583 | . 100 59 191 233 Absorbed by Shields . | . . . . . Core Remaining (%) 68 | 100 . 36 . . Volleys Fired 142 | 9 57 17 54 5 Largest 2 | 2 2 2 2 2 Hottest 140 | 70 90 140 140 112 Shots Fired 283 | 18 113 34 108 10 Gun 278 | 18 110 32 108 10 Cannon . | . . . . . Launcher 5 | . 3 2 . . Special . | . . . . . Kinetic 73 | 9 35 13 16 . Thermal 187 | 9 57 19 92 10 Explosive 5 | . 3 2 . . Electromagnetic 18 | . 18 . . . Robot Hit Streak 18 | 3 7 5 18 5 Robot Miss Streak 7 | 2 7 2 4 2 Penetration Max . | . . . . . Secondary Targets 4 | . 1 3 . . Max Gunslinging Chain 1 | . 1 1 . . Shots Hit Robots 187 | 10 65 22 80 10 Core Hits 69 | 2 29 12 25 1 Critical Kills . | . . . . . Critical Parts Destroyed 1 | 1 . . . . Critical Strikes 8 | 2 . . 5 1 Burn 6 | 1 . . 5 . Destroy 1 | 1 . . . . Sever 1 | . . . . 1 Melee Attacks 5 | . . . . 5 Impact . | . . . . . Slashing 5 | . . . . 5 Piercing . | . . . . . Sneak Attacks . | . . . . . Combat Hostiles . | . . . . . Follow-up Attacks . | . . . . . Damage Inflicted 2996 | 115 989 361 1302 229 Guns 2559 | 115 737 261 1302 144 Cannons . | . . . . . Explosions 352 | . 252 100 . . Melee 85 | . . . . 85 Ramming . | . . . . . Kinetic 427 | 40 148 73 166 . Thermal 2094 | 75 551 188 1136 144 Explosive 236 | . 136 100 . . Electromagnetic 154 | . 154 . . . Impact . | . . . . . Slashing 85 | . . . . 85 Piercing . | . . . . . Highest Corruption . | . . . . . Average Corruption . | . . . . . Corruption Purged . | . . . . . Corruption Blocked . | . . . . . Overload Shots . | . . . . . Overflow Damage 6 | . 6 . . . Projectiles . | . . . . . Explosions 6 | . 6 . . . Melee . | . . . . . Knockbacks . | . . . . . Impact . | . . . . . Kinetic . | . . . . . Secondary . | . . . . . Self-Inflicted Damage 26 | . 26 . . . Shots 1 | . 1 . . . Rammed . | . . . . . Targets Rammed . | . . . . . Kicked . | . . . . . Crushed . | . . . . . Highest Temperature 312 | 100 312 252 301 85 Average Temperature 84 | 38 91 86 85 51 Received Heat Transfer 768 | . 282 96 258 132 Effects 1 | . 1 . . . Interference 1 | . 1 . . . Siege Activations . | . . . . . Martial Activations . | . . . . . Shielding Activations . | . . . . . Robots Disrupted . | . . . . . Combat Hostiles . | . . . . . Robots Corrupted . | . . . . . Combat Hostiles . | . . . . . Parts Fried . | . . . . . Impact Corruptions . | . . . . . Robots Melted 2 | . . . 2 . Combat Hostiles 2 | . . . 2 . Parts Melted 11 | 1 . . 10 . Heat Transferred 5446 | 296 1398 385 2997 370 Parts Sabotaged . | . . . . . Parts Stolen . | . . . . . Parts Stripped . | . . . . . Power Chain Reactions 1 | . 1 . . . Alert | -11 -10 -10 -9 -9 ------- Run | Yrd Mat Min Mat Min Maximum Alert Level . | . . . . . Low Security (%) 100 | 100 100 100 100 100 Level 1 . | . . . . . Level 2 . | . . . . . Level 3 . | . . . . . Level 4 . | . . . . . Level 5 . | . . . . . High Security . | . . . . . Max Security . | . . . . . Peak Influence 106 | 5 106 102 105 24 Initial 24 | . . 8 5 24 Average 37 | 1 48 24 42 8 Influence Increases 1115 | 10 414 212 479 . Destroy 0b10 Robot/C 700 | . 260 160 280 . Destroy 0b10 Robot/NC 45 | 10 25 . 10 . Destroy Leader 188 | . 66 30 92 . Trap Triggered on 0b10 10 | . 10 . . . Successful Hack 80 | . 31 . 49 . Disable Machine 15 | . . 15 . . Destroy Structure 32 | . 22 7 3 . Lose Combat Pursuer 45 | . . . 45 . Influence Decreases 1115 | 10 392 218 431 64 Entered New Map 65 | . . 14 11 40 Time Decay 916 | 10 372 194 340 . Lost Part 134 | . 20 10 80 24 Squads Dispatched 2 | . 2 . . . Investigation 1 | . 1 . . . Extermination . | . . . . . Reinforcement 1 | . 1 . . . Assault . | . . . . . Garrison . | . . . . . Intercept . | . . . . . Searches Triggered . | . . . . . Construction Impeded . | . . . . . Haulers Reinforced . | . . . . . Active Scanning Responses . | . . . . . Cargo Convoy Interrupts . | . . . . . Stealth | -11 -10 -10 -9 -9 --------- Run | Yrd Mat Min Mat Min Distress Signals 3 | . 1 . 2 . Communications Jammed . | . . . . . Distress Signals . | . . . . . Times Spotted 53 | . 21 9 20 3 Peak Tracking Total 5 | . 4 3 5 3 Tactical Retreats 2 | . . . 2 . Traps | -11 -10 -10 -9 -9 ------- Run | Yrd Mat Min Mat Min Traps Triggered . | . . . . . Indirectly . | . . . . . Trap Hack Attempts . | . . . . . Triggered . | . . . . . Disarmed . | . . . . . Reprogrammed 6 | . 6 . . . Reused 1 | . 1 . . . Traps Extracted . | . . . . . Installed . | . . . . . Triggered 1 | . 1 . . . Most Traps Carried 4 | . . 4 4 4 Machines | -11 -10 -10 -9 -9 ---------- Run | Yrd Mat Min Mat Min Machines Disabled 1 | . . 1 . . Max in Single Turn 1 | . . 1 . . Machines Repaired . | . . . . . Machines Dismantled . | . . . . . Machines Sabotaged . | . . . . . Overloaded Fab Kills . | . . . . . Hacking | -11 -10 -10 -9 -9 --------- Run | Yrd Mat Min Mat Min Machines Accessed 13 | . 6 . 7 . Terminals 13 | . 6 . 7 . Fabricators . | . . . . . Repair Stations . | . . . . . Recycling Units . | . . . . . Scanalyzers . | . . . . . Garrison Access . | . . . . . Total Hacks 37 | . 19 . 18 . Successful 18 | . 9 . 9 . Failed 19 | . 10 . 9 . Catastrophic 1 | . 1 . . . Database Lockouts . | . . . . . Manual 22 | . 12 . 10 . Terminals 37 | . 19 . 18 . Fabricators . | . . . . . Repair Stations . | . . . . . Recycling Units . | . . . . . Scanalyzers . | . . . . . Garrison Access . | . . . . . Terminal Hacks 8 | . 4 . 4 . Locate Traps 4 | . 2 . 2 . Reprogram Traps 1 | . 1 . . . Hauler Manifests 2 | . 1 . 1 . Registered Prototypes 1 | . . . 1 . Fabricator Hacks . | . . . . . Repair Station Hacks . | . . . . . Recycling Unit Hacks . | . . . . . Scanalyzer . | . . . . . Garrison Access Hacks . | . . . . . Unauthorized Hacks 10 | . 5 . 5 . Terminals 10 | . 5 . 5 . Skim 10 | . 5 . 5 . Fabricators . | . . . . . Repair Stations . | . . . . . Recycling Units . | . . . . . Scanalyzers . | . . . . . Garrison Access . | . . . . . Data Cores Recovered . | . . . . . Used . | . . . . . Hacking Detections 12 | . 6 . 6 . Full Trace Events . | . . . . . Feedback Events . | . . . . . Feedback Blocked . | . . . . . Robot Schematics Acquired . | . . . . . Robots Built . | . . . . . Authchips . | . . . . . Time . | . . . . . Total Robot Build Rating . | . . . . . Part Schematics Acquired . | . . . . . Parts Built . | . . . . . Authchips . | . . . . . Time . | . . . . . Total Part Build Rating . | . . . . . Parts Repaired . | . . . . . Time . | . . . . . Parts Recycled . | . . . . . Recycled Matter . | . . . . . Retrieved Matter . | . . . . . Retrieved Components . | . . . . . Parts Scanalyzed . | . . . . . Part Schematics Acquired . | . . . . . Parts Damaged . | . . . . . Bothacking | -11 -10 -10 -9 -9 ------------ Run | Yrd Mat Min Mat Min Used RIF Installer . | . . . . . Robots Hacked . | . . . . . Non-combat . | . . . . . Combat . | . . . . . Robot Hacks Applied . | . . . . . Relay Couplers Released . | . . . . . Fabnet Peak Effective % . | . . . . . Robots Rewired . | . . . . . Allies Hacked . | . . . . . Hacks Repelled . | . . . . . Allies | -11 -10 -10 -9 -9 -------- Run | Yrd Mat Min Mat Min Total Allies . | . . . . . Largest Group . | . . . . . Highest-Rated Group . | . . . . . Highest-Rated Ally . | . . . . . Total Orders . | . . . . . Ally Attacks . | . . . . . Total Damage . | . . . . . Kills . | . . . . . Allies Corrupted . | . . . . . Allies Melted . | . . . . . Intel | -11 -10 -10 -9 -9 ------- Run | Yrd Mat Min Mat Min Active Infowar (turns) 2988 | 15 920 979 1058 16 Structural 1074 | . . . 1058 16 Seismic 2988 | 15 920 979 1058 16 Robot Analysis Total . | . . . . . Derelict Logs Recovered 2 | . . 2 . . Drone Launches . | . . . . . Drone Recoveries . | . . . . . Exploration | -11 -10 -10 -9 -9 ------------- Run | Yrd Mat Min Mat Min Turns Passed 3273 | 109 1095 979 1058 32 Spaces Moved 1605 | 39 530 561 475 . Core 5 | 3 . . 2 . Treads 1600 | 36 530 561 473 . Legs . | . . . . . Wheels . | . . . . . Hover . | . . . . . Flight . | . . . . . Fastest Speed 50 | 50 160 160 160 . Average Speed 162 | 151 160 160 168 . Slowest Speed 600 | 160 160 160 600 . Overloaded Moves . | . . . . . Propulsion Burnouts . | . . . . . Robots Hopped . | . . . . . Potential Cave-ins . | . . . . . Cave-ins Triggered . | . . . . . Exploration Rate (%) 49 | 4 95 99 45 2 Regions Visited 4 Branch Regions 2 Pre-discovered Areas 4 | . . 1 3 . Known Exits Taken 2 | . . 1 1 . Unknown Exits Taken 2 | 1 1 . . . Scrap Searched 1 | . . 1 . . Spaces Dug . | . . . . . Terrain Destroyed 27 | . 20 7 . . Melee . | . . . . . Projectile . | . . . . . AOE 27 | . 20 7 . . Terrain Rammed . | . . . . . Walls Destroyed . | . . . . . Machines Disabled . | . . . . . Actions | -11 -10 -10 -9 -9 --------- Run | Yrd Mat Min Mat Min Total 2000 | 69 673 615 629 14 Wait 154 | 9 63 13 67 2 Move 1601 | 38 529 560 474 . Hop . | . . . . . Pick Up 30 | 6 8 8 8 . Fast Attach 18 | 7 1 2 8 . Attach 10 | . 1 . 7 2 Detach . | . . . . . Swap 16 | . 7 6 3 . Drop 24 | . 7 9 8 . Fire 142 | 9 57 17 54 5 Melee 5 | . . . . 5 Ram . | . . . . . Kick . | . . . . . Crush . | . . . . . Escape Stasis . | . . . . . Rewire . | . . . . . Trap . | . . . . . Miscellaneous . | . . . . . Route ------- -11/Scrapyard -10/Materials (discovered 6 exits: *Mat x3 / [*Min x2] / Sub) -10/Mines (discovered 3 exits: *Mat x2 / *Sub) -9/Materials (discovered 7 exits: *Mat x3 / *Min x2 / *Sto x2) -9/Mines (discovered 2 exits: Mat x2) History --------- Turn | Location | Event 12 | -11/Scrapyard | Discovered new exit (range 14) 110 | -11/Scrapyard | Entered Materials 307 | -10/Materials | Build established: Mutant 538 | -10/Materials | Discovered new exit (range 6) 685 | -10/Materials | Discovered new exit (range 11) 690 | -10/Materials | Identified exit to Subcaves 690 | -10/Materials | Identified exit to Materials 761 | -10/Materials | Discovered new exit (range 5) 871 | -10/Materials | Learned Storage stockpile data 874 | -10/Materials | Build established: Scavenger-Mutant 912 | -10/Materials | Loaded intel: 8 terminal locations 980 | -10/Materials | Learned location of 1 exit from Recycling 1031 | -10/Materials | Learned 2 Mines zone layouts 1205 | -10/Materials | Entered Mines 1239 | -10/Mines | YI-UF0 nonchalantly dropped a Grenade Launcher on the ground 1263 | -10/Mines | Found a hidden stash of uninstalled traps 1375 | -10/Mines | Discovered exit to Subcaves (range 7) 1466 | -10/Mines | Core integrity fell below 50% 1621 | -10/Mines | Discovered exit to Materials (range 5) 1744 | -10/Mines | Learned Materials interactive machine intel 1834 | -10/Mines | Joined a pair of Derelicts in attacking an 0b10 outpost 2012 | -10/Mines | Learned location of Mines (-9) 2184 | -10/Mines | Entered Materials 2184 | -9/Materials | Evolved 2 slots: Utility x2 2185 | -9/Materials | Loaded intel: 18 interactive machine locations 2276 | -9/Materials | Discovered new exit (range 16) 2509 | -9/Materials | Discovered new exit (range 6) 2661 | -9/Materials | Discovered new exit (range 3) 2776 | -9/Materials | Lost 3 parts (1u2w) 2804 | -9/Materials | Discovered new exit (range 14) 2903 | -9/Materials | Learned location of 1 exit from Recycling 2947 | -9/Materials | Identified exit to Materials 2957 | -9/Materials | Lost 4 parts (1p2n1w) 2981 | -9/Materials | Identified exit to Mines 3018 | -9/Materials | Learned Storage terminal intel 3024 | -9/Materials | Learned location of 1 exit from Storage 3070 | -9/Materials | Learned 4 Recycling zone layouts 3109 | -9/Materials | Identified exit to Storage 3242 | -9/Materials | Entered Mines 3244 | -9/Mines | Core integrity fell below 50% 3270 | -9/Mines | Core integrity fell below 20% 3274 | -9/Mines | Destroyed by L-31 Rogue with Katana Last Messages --------------- 03211_ Y-45 Defender heat spikes uncontrollably. 03212_ Heat Sink melted. 03212_ Beam Rifle melted. 03212_ Heat Sink melted. 03212_ Imp. Ion Engine melted. 03212_ Y-45 Defender destroyed. 03215_ Acquired 20 matter. 03235_ W-16 Scout sends out distress signal. 03237_ K-01 Serf cleans the Machine. LOCATION=MINES GOAL=ESCAPE Something is scanning the area. Loading 2 Materials entrances... 03246_ Lgt. Nuclear Core destroyed. 03256_ Beam Rifle destroyed. 03259_ Beam Rifle severed. 03261_ Lgt. Treads destroyed. 03264_ L-31 Rogue Imp. Ion Engine severed. 03264_ Beam Rifle destroyed. 03266_ Heat Sink destroyed. Map ----- +----------------------------------------------------+ | | | | | | | | | | | | | | | | | | | | | | | | | | | | | | | | | | | | | | | | | | | ??????????????????????????????? | | ???????????????????##########?? | | ???????????????????##########?? | | ???????????????????##g ##?? | | ???????????????????## l@ ##?? | | ???????????????????## g ##?? | | ???????????????????##""" ##?? | | ???????????????????##""" ##?? | | ???????????????????##""" ##?? | | ???????????????????## ##?? | | ???????????????????### ######?? | | ??????????????????? ######?? | | ???????????????????### ???????? | | ???????????????????### ???????? | | ????????????????????# ???????? | | ??????????????????????????????? | | ??????????????????????????????? | | ??????????????????????????????? | | ??????????????????????????????? | | ??????????????????????????????? | | ??????????????????????????????? | | ??????????????????????????????? | | ??????????????????????????????? | | ??????????????????????????????? | | ??????????????????????????????? | | ??????????????????????????????? | | ??????????????????????????????? | | ??????????????????????????????? | | ??????????????????????????????? | +----------------------------------------------------+ Best States ------------- Heat Dissipation 38 Energy Generation 18 Energy Capacity 250 Matter Stores 300 Matter Capacity 300 Sight Range 16 Terrain Scan Density 10 Evasion (%) 40 Recoil Reduction 2 Item Schematics ----------------- None Robot Schematics ------------------ None Fabricated ------------ Nothing Repaired ---------- Nothing Alien Tech Used ----------------- None Achievements -------------- None Challenges ------------ None Game ------ Seed MakeshiftExpertEdition Manual? 0 Play Time 00:30:11 Cumulative 68.3 hours Start 2025.06.04 @ 08:48:36 End 2025.06.04 @ 09:20:02 Sessions 1 Manual Loads 0 Difficulty Rogue Special Mode None Game No. 76 Rogue 73 Adventurer 0 Explorer 3 Win Type - Total 0 Types 0/0/0/0/0/0/0/0/0/0 Lore% 11 Gallery% 37 Achievement% 32 Wizard Run 0 Options --------- Layout 0 ASCII 0 Keyboard 0 Movement Numpad Keybinds 0 Fullscreen 0 Font 16/SmallcapsGlow Map View 88x55 Zoom Use 0% Tactical HUD 1 Map Filters NONE Filters NONE Steam 1 RUN: cd07821f-3940-41b0-b614-af92d1caef9d